bitfinex/quotes_BTCUSD_20240906
["timestamp","ask_amount","ask_price","bid_price","bid_amount"]
[1725661970741,1.67537092,53925.0,53924.0,0.00164]
[1725661971428,1.62201209,53925.0,53924.0,0.00164]
[1725661971647,1.72225386,53925.0,53924.0,0.00164]
[1725661972082,1.72025386,53925.0,53924.0,0.00164]
[1725661975803,1.62082809,53925.0,53924.0,0.00164]
[1725661975996,1.64990204,53925.0,53924.0,0.00164]
[1725661977776,1.65190204,53925.0,53924.0,0.00164]
[1725661978485,1.66934906,53925.0,53924.0,0.00164]
[1725661980442,1.66734906,53925.0,53924.0,0.00164]
[1725661980883,1.83221705,53925.0,53924.0,0.00164]
[1725661981133,1.83421657,53925.0,53924.0,0.00164]
[1725661981595,1.83221657,53925.0,53924.0,0.00164]
[1725661982084,1.80314262,53925.0,53924.0,0.00164]
[1725661983620,1.26738963,53925.0,53924.0,0.06614]
[1725661983842,1.26738963,53925.0,53924.0,0.14944]
[1725661983843,1.26739011,53925.0,53924.0,0.14944]
[1725661984728,1.26639011,53925.0,53924.0,0.14944]
[1725661984994,0.89550511,53925.0,53924.0,0.14944]
[1725661985215,0.51035627,53925.0,53924.0,0.15544]
[1725661985433,0.51035627,53925.0,53924.0,0.16544]
[1725661985651,0.49635627,53925.0,53924.0,0.16544]
[1725661985863,0.50635627,53925.0,53924.0,0.16544]
[1725661986576,0.51035627,53925.0,53924.0,0.16544]
[1725661986799,0.50935627,53925.0,53924.0,0.15944]
[1725661987048,0.50935193,53925.0,53924.0,0.15944]
[1725661987536,0.53842374,53925.0,53924.0,0.15944]
[1725661987749,0.53942374,53925.0,53924.0,0.16544]
[1725661988193,0.53842374,53925.0,53924.0,0.15944]
[1725661988413,0.90930874,53925.0,53924.0,0.15944]
[1725661988882,0.91030874,53925.0,53924.0,0.16644]
[1725661989586,0.89630874,53925.0,53924.0,0.16644]
[1725661989830,0.89730874,53925.0,53924.0,0.16644]
[1725661990507,0.89830874,53925.0,53924.0,0.16644]
[1725661990732,0.89730874,53925.0,53924.0,0.15944]
[1725661990952,0.89830874,53925.0,53924.0,0.16644]
[1725661991442,0.89730874,53925.0,53924.0,0.15944]
[1725661992099,0.86923693,53925.0,53924.0,0.16644]
[1725661993857,0.86923702,53925.0,53924.0,0.16644]
[1725661994544,0.55376689,53925.0,53924.0,0.16644]
[1725661994786,0.92465189,53925.0,53924.0,0.16644]
[1725661995319,0.58147433,53925.0,53924.0,0.16644]
[1725661996027,0.58172056,53925.0,53924.0,0.16644]
[1725661996450,0.49835202,53925.0,53924.0,0.18944]
[1725661997146,0.566343,53925.0,53924.0,0.18944]
[1725661997417,0.58378556,53925.0,53924.0,0.18944]
[1725661997610,0.69494362,53925.0,53924.0,0.18944]
[1725661997953,0.32405862,53925.0,53924.0,0.18944]
[1725661998045,0.69494362,53925.0,53924.0,0.18944]
[1725661998263,0.72401514,53925.0,53924.0,0.18944]
[1725661998713,0.35313014,53925.0,53924.0,0.18944]
[1725661998935,0.32405862,53925.0,53924.0,0.18944]
[1725661999838,0.13861662,53925.0,53924.0,0.18944]
[1725662000287,0.13861656,53925.0,53924.0,0.18944]
[1725662000527,0.12117406,53925.0,53924.0,0.18944]
[1725662000759,0.13861655,53925.0,53924.0,0.18944]
[1725662001228,0.02745849,53925.0,53924.0,1.11667]
[1725662001684,0.08306346,53925.0,53924.0,1.11667]
[1725662001973,0.08306346,53925.0,53924.0,0.374886]
[1725662002414,0.02745849,53925.0,53924.0,0.374886]
[1725662003618,0.010016,53925.0,53924.0,0.745778]
[1725662003876,0.08306048,53925.0,53924.0,0.745778]
[1725662004616,0.01606048,53928.0,53927.0,0.01]
[1725662004863,0.16673709,53941.0,53932.0,0.1401]
[1725662004864,0.08340989,53935.0,53932.0,0.1401]
[1725662005093,0.08340989,53937.0,53936.0,0.195404]
[1725662005316,0.56555296,53947.0,53939.0,0.0735]
[1725662005317,0.11115806,53940.0,53939.0,0.0735]
[1725662005548,0.370753,53945.0,53943.0,0.1501]
[1725662005549,0.13897963,53945.0,53943.0,0.1501]
[1725662005772,0.11113277,53944.0,53943.0,0.1501]
[1725662006013,0.29650577,53945.0,53944.0,0.009]
[1725662006237,0.29650577,53945.0,53944.0,0.1481]
[1725662006489,0.29650577,53945.0,53944.0,0.1711]
[1725662006711,0.185373,53945.0,53944.0,0.1711]
[1725662006974,0.185373,53945.0,53944.0,0.1701]
[1725662007203,0.55612,53945.0,53944.0,0.1701]
[1725662007448,0.185373,53945.0,53944.0,0.1701]
[1725662007947,0.186373,53945.0,53944.0,0.1841]
[1725662008417,0.2696587,53945.0,53944.0,0.1841]
[1725662008859,0.6404057,53945.0,53944.0,0.1841]
[1725662009330,0.6404057,53945.0,53944.0,0.1471]
[1725662009331,1.0101527,53945.0,53944.0,0.1471]
[1725662009608,0.926867,53945.0,53944.0,0.1471]
[1725662009848,0.926867,53945.0,53944.0,0.1401]
[1725662010066,0.926867,53945.0,53944.0,0.1521]
[1725662010534,0.926867,53945.0,53944.0,0.1401]
[1725662010808,1.0101093,53945.0,53944.0,0.1401]
[1725662011043,1.0101093,53945.0,53944.0,0.1541]
[1725662012161,0.65690142,53945.0,53944.0,0.1401]
[1725662012381,0.84227442,53945.0,53944.0,0.1401]
[1725662012619,0.84227442,53945.0,53944.0,0.1521]
[1725662012865,0.84727442,53945.0,53944.0,0.1521]
[1725662013062,0.84727442,53945.0,53944.0,0.1401]
[1725662013303,0.84727442,53945.0,53944.0,0.1501]
[1725662014162,0.84727442,53945.0,53944.0,0.0866]
[1725662014616,0.90273635,53945.0,53944.0,0.0866]
[1725662015049,0.89573635,53945.0,53944.0,0.0866]
[1725662015518,0.89973635,53945.0,53944.0,0.0866]
[1725662015752,1.27048335,53945.0,53944.0,0.0866]
[1725662016046,1.27048335,53945.0,53944.0,0.0766]
[1725662016293,1.27148335,53945.0,53944.0,0.0866]
[1725662018380,1.28684455,53945.0,53944.0,0.0866]
[1725662018841,1.31590782,53945.0,53944.0,0.0866]
[1725662019073,1.26044589,53945.0,53944.0,0.0866]
[1725662021616,1.26044589,53945.0,53944.0,0.08823]
[1725662021852,1.26126089,53945.0,53944.0,0.08823]
[1725662022084,1.34310173,53945.0,53944.0,0.08823]
[1725662024011,1.36053931,53945.0,53944.0,0.08823]
[1725662024257,1.6788822,53945.0,53944.0,0.01163]
[1725662024471,1.75357395,53945.0,53944.0,0.01163]
[1725662025130,1.74857395,53945.0,53944.0,0.00163]
[1725662025568,1.79194208,53945.0,53944.0,0.00163]
[1725662025815,1.29788,53934.0,53933.0,0.0768]
[1725662026043,1.29788,53934.0,53924.0,0.00864]
[1725662026044,0.2122578,53934.0,53924.0,0.00864]
[1725662026270,0.92711,53931.0,53930.0,0.0768]
[1725662026495,1.08332137,53931.0,53930.0,0.0768]
[1725662026712,1.31539484,53931.0,53930.0,0.0768]
[1725662026950,1.4658007,53931.0,53930.0,0.0768]
[1725662027899,1.67805984,53931.0,53930.0,0.0768]
[1725662028594,1.53928291,53931.0,53930.0,0.0768]
[1725662029037,1.52184073,53931.0,53930.0,0.0808]
[1725662029485,1.52184073,53931.0,53930.0,0.0768]
[1725662029945,1.52284073,53931.0,53930.0,0.0858]
[1725662030195,1.15999673,53931.0,53930.0,0.0858]
[1725662030425,1.15999673,53931.0,53930.0,0.1485]
[1725662030864,1.29889838,53931.0,53930.0,0.1485]
[1725662031089,1.26082861,53931.0,53930.0,0.1395]
[1725662031595,1.26182861,53931.0,53930.0,0.1525]
[1725662031814,1.26682861,53931.0,53930.0,0.1525]
[1725662032036,1.28327011,53931.0,53930.0,0.1465]
[1725662032493,1.28427011,53931.0,53930.0,0.1555]
[1725662032968,1.28327011,53931.0,53930.0,0.1465]
[1725662033198,1.27927011,53931.0,53930.0,0.1575]
[1725662033427,1.28327011,53931.0,53930.0,0.1575]
[1725662034601,1.29489817,53931.0,53930.0,0.1575]
[1725662034832,1.26582861,53931.0,53930.0,0.15913]
[1725662035517,1.12692696,53931.0,53930.0,0.15913]
[1725662036498,1.15599731,53931.0,53930.0,0.15913]
[1725662039131,1.17343858,53931.0,53930.0,0.15913]
[1725662039343,1.15599731,53931.0,53930.0,0.15913]
[1725662039561,1.17343858,53931.0,53930.0,0.15913]
[1725662041983,1.14436823,53931.0,53930.0,0.15913]
[1725662042836,0.02244127,53931.0,53930.0,0.15913]
[1725662043037,0.20786327,53931.0,53930.0,0.15913]
[1725662043249,0.57870727,53931.0,53930.0,0.15913]
[1725662046357,0.57870698,53931.0,53930.0,0.15913]
[1725662048392,0.607776,53931.0,53930.0,0.15913]
[1725662049287,0.236932,53931.0,53930.0,0.15913]
[1725662049726,0.607776,53931.0,53930.0,0.15913]
[1725662050644,0.236932,53931.0,53930.0,0.15913]
[1725662051510,0.607776,53931.0,53930.0,0.15913]
[1725662051746,0.59033502,53931.0,53930.0,0.15913]
[1725662051998,0.57870694,53931.0,53930.0,0.15913]
[1725662053835,0.20786294,53931.0,53930.0,0.15913]
[1725662054056,0.57870694,53931.0,53930.0,0.15913]
[1725662055389,0.43729833,53931.0,53930.0,0.15913]
[1725662055613,0.62272033,53931.0,53930.0,0.15913]
[1725662056737,0.2966684,53931.0,53930.0,0.15913]
[1725662056965,0.26886758,53931.0,53930.0,0.15913]
[1725662058345,0.21449172,53931.0,53930.0,0.15913]
[1725662058577,0.32573812,53931.0,53930.0,0.15913]
[1725662059248,0.32577148,53931.0,53930.0,0.15913]
[1725662061049,0.58615072,53931.0,53930.0,0.15913]
[1725662061285,0.72525042,53931.0,53930.0,0.15913]
[1725662061494,0.58615072,53931.0,53930.0,0.15913]
[1725662061716,0.72529136,53931.0,53930.0,0.15913]
[1725662061936,0.69622164,53931.0,53930.0,0.15913]
[1725662062620,0.557081,53931.0,53930.0,0.15913]
[1725662065133,0.58615083,53931.0,53930.0,0.15913]
[1725662065573,0.75307047,53931.0,53930.0,0.15913]
[1725662067354,0.77051159,53931.0,53930.0,0.15913]
[1725662067578,0.68155353,53931.0,53930.0,0.15913]
[1725662070896,0.66411241,53931.0,53930.0,0.15913]
[1725662071332,0.68155345,53931.0,53930.0,0.15913]
[1725662071698,0.65248362,53931.0,53930.0,0.15913]
[1725662072831,1.02332762,53931.0,53930.0,0.15913]
[1725662073352,0.65248362,53931.0,53930.0,0.15913]
[1725662073575,1.02332762,53931.0,53930.0,0.15913]
[1725662074017,0.65248362,53931.0,53930.0,0.15913]
[1725662074229,1.02332762,53931.0,53930.0,0.15913]
[1725662077701,1.05239747,53931.0,53930.0,0.15913]
[1725662079117,1.0677757,53931.0,53930.0,0.15913]
[1725662081996,1.03870585,53931.0,53930.0,0.15913]
[1725662082465,1.02126481,53931.0,53930.0,0.15913]
[1725662082686,1.03870585,53931.0,53930.0,0.15913]
[1725662084088,1.02126481,53931.0,53930.0,0.15913]
[1725662084335,1.03870585,53931.0,53930.0,0.15913]
[1725662087754,1.40954985,53931.0,53930.0,0.01263]
[1725662087962,1.40954985,53931.0,53924.0,0.00864]
[1725662087963,0.986012,53925.0,53924.0,0.00164]
[1725662088201,1.84928778,53925.0,53924.0,0.00164]
[1725662089311,1.85028778,53925.0,53924.0,0.01064]
[1725662089516,1.86428778,53925.0,53924.0,0.01064]
[1725662089732,1.84928778,53925.0,53924.0,0.00164]
[1725662090213,1.86328778,53925.0,53924.0,0.00164]
[1725662090432,1.86329409,53925.0,53924.0,0.00164]
[1725662090843,1.89236957,53925.0,53924.0,0.00164]
[1725662091056,2.07735264,53925.0,53924.0,0.00164]
[1725662091583,2.14779824,53925.0,53924.0,0.00164]
[1725662091818,2.15279824,53925.0,53924.0,0.00164]
[1725662092037,2.12372276,53925.0,53924.0,0.00164]
[1725662092478,2.05327716,53925.0,53924.0,0.00164]
[1725662092692,1.86829409,53925.0,53924.0,0.00164]
[1725662093119,1.93938149,53925.0,53924.0,0.00164]
[1725662093333,2.12714387,53925.0,53924.0,0.00164]
[1725662093554,2.10969652,53925.0,53924.0,0.00164]
[1725662093775,2.12714337,53925.0,53924.0,0.00164]
[1725662093998,1.95428677,53925.0,53924.0,0.00164]
[1725662095586,1.95428646,53925.0,53924.0,0.00164]
[1725662096239,1.89548646,53925.0,53924.0,0.00164]
[1725662097531,2.01865026,53925.0,53924.0,0.00164]
[1725662097992,2.20641264,53925.0,53924.0,0.00164]
[1725662098635,2.01865026,53925.0,53924.0,0.00164]
[1725662099369,1.88038619,53925.0,53924.0,0.00164]
[1725662100527,1.89783265,53925.0,53924.0,0.00164]
[1725662100961,1.80571203,53925.0,53924.0,0.00164]
[1725662101180,1.99115403,53925.0,53924.0,0.00164]
[1725662103055,1.99112966,53925.0,53924.0,0.00164]
[1725662103737,2.17611273,53925.0,53924.0,0.00164]
[1725662104239,2.15866627,53925.0,53924.0,0.00164]
[1725662104472,2.17611279,53925.0,53924.0,0.00164]
[1725662106751,1.3494493,53925.0,53924.0,0.08294]
[1725662106942,1.45351404,53925.0,53924.0,0.08294]
[1725662107484,1.45351404,53925.0,53924.0,0.14754]
[1725662107964,1.43606752,53925.0,53924.0,0.14754]
[1725662108175,1.4535139,53925.0,53924.0,0.14754]
[1725662108636,1.4543289,53925.0,53924.0,0.14754]
[1725662111210,1.43688252,53925.0,53924.0,0.14754]
[1725662111443,1.45432781,53925.0,53924.0,0.14754]
[1725662113502,1.63684689,53925.0,53924.0,0.08294]
[1725662113730,2.00773189,53925.0,53924.0,0.08294]
[1725662113956,2.06623189,53925.0,53924.0,0.00164]
[1725662114456,2.0487866,53925.0,53924.0,0.00164]
[1725662114686,2.09530834,53925.0,53924.0,0.00164]
[1725662116766,2.176134,53925.0,53924.0,0.00164]
[1725662117228,1.93511492,53925.0,53924.0,0.00164]
[1725662117900,1.93535036,53925.0,53924.0,0.00164]
[1725662120752,1.56446536,53925.0,53924.0,0.00164]
[1725662121166,1.53538993,53925.0,53924.0,0.06304]
[1725662121398,1.16450493,53925.0,53924.0,0.13884]
[1725662121626,0.712557,53925.0,53924.0,0.13884]
[1725662122940,0.71988521,53925.0,53924.0,0.13884]
[1725662123161,0.60868252,53925.0,53924.0,0.13884]
[1725662123373,0.62361796,53925.0,53924.0,0.13884]
[1725662123815,0.99450296,53925.0,53924.0,0.13884]
[1725662124032,0.62361796,53925.0,53924.0,0.13884]
[1725662124259,0.60617348,53925.0,53924.0,0.13884]
[1725662124481,0.76265553,53925.0,53924.0,0.13884]
[1725662125429,0.48999865,53925.0,53924.0,0.13884]
[1725662125657,0.35096162,53925.0,53924.0,0.13884]
[1725662125871,0.16551962,53925.0,53924.0,0.13884]
[1725662126155,0.26182182,53925.0,53924.0,0.14584]
[1725662126537,0.15775708,53925.0,53924.0,0.14584]
[1725662126764,0.12995597,53925.0,53924.0,1.1295233]
[1725662126995,0.13903703,53929.0,53928.0,0.007]
[1725662126996,0.05562435,53929.0,53928.0,0.007]
[1725662127228,0.000815,53931.0,53930.0,0.696476]
[1725662127454,0.000815,53931.0,53930.0,1.090327]
[1725662127683,0.000815,53931.0,53930.0,1.461178]
[1725662127909,0.000815,53931.0,53930.0,1.56424274]
[1725662128132,0.08343653,53943.0,53941.0,0.185387]
[1725662128362,0.08425153,53944.0,53943.0,0.1372]
[1725662128612,0.000815,53944.0,53943.0,0.1602]
[1725662128853,0.000815,53944.0,53943.0,0.1672]
[1725662129074,0.000815,53944.0,53943.0,0.1632]
[1725662129718,0.003815,53944.0,53943.0,0.1632]
[1725662129932,0.05937471,53944.0,53943.0,0.1632]
[1725662130192,0.003815,53944.0,53943.0,0.1632]
[1725662130403,0.003815,53944.0,53943.0,0.1622]
[1725662131276,0.004815,53944.0,53943.0,0.1712]
[1725662131486,0.02932105,53944.0,53943.0,0.1712]
[1725662133069,0.02632105,53944.0,53943.0,0.1712]
[1725662133286,0.02832105,53944.0,53943.0,0.1712]
[1725662133498,0.02732105,53944.0,53943.0,0.1622]
[1725662133719,0.02732105,53944.0,53943.0,0.1712]
[1725662133954,0.03032105,53944.0,53943.0,0.1712]
[1725662134385,0.02932105,53944.0,53943.0,0.1622]
[1725662134599,0.03032105,53944.0,53943.0,0.1712]
[1725662135066,0.02932105,53944.0,53943.0,0.1622]
[1725662135308,0.02932105,53944.0,53943.0,0.0758]
[1725662135309,0.28680043,53944.0,53943.0,0.0758]
[1725662135520,0.71603863,53944.0,53943.0,0.009]
[1725662135736,0.95320605,53944.0,53943.0,0.009]
[1725662136170,0.95520605,53944.0,53943.0,0.009]
[1725662136675,0.185391,53941.0,53938.0,0.0758]
[1725662136889,0.185391,53941.0,53940.0,0.007]
[1725662137103,0.28945574,53941.0,53940.0,0.007]
[1725662137321,0.185383,53943.0,53940.0,0.0684]
[1725662137571,0.185383,53943.0,53941.0,0.0758]
[1725662138033,0.002815,53944.0,53943.0,0.1432]
[1725662138257,0.000815,53944.0,53943.0,0.1432]
[1725662139066,0.01825144,53944.0,53943.0,0.1422]
[1725662139736,0.33975837,53944.0,53943.0,0.1422]
[1725662140186,0.43075566,53944.0,53943.0,0.1422]
[1725662140425,0.43075566,53944.0,53941.0,0.004]
[1725662140426,0.185384,53942.0,53941.0,0.004]
[1725662140668,0.75121403,53942.0,53941.0,0.004]
[1725662140905,0.76865217,53942.0,53941.0,0.004]
[1725662141603,0.926955,53940.0,53939.0,0.0758]
[1725662141831,0.21250017,53942.0,53941.0,0.012]
[1725662141832,0.85280485,53942.0,53941.0,0.012]
[1725662142060,1.22357359,53942.0,53941.0,0.012]
[1725662142271,1.62205916,53942.0,53941.0,0.012]
[1725662142912,1.62205916,53942.0,53941.0,0.01190479]
[1725662143146,1.64653588,53942.0,53941.0,0.01290479]
[1725662143354,1.64553588,53942.0,53941.0,0.001]
[1725662143570,0.926955,53940.0,53939.0,0.014]
[1725662143794,1.19486121,53940.0,53939.0,0.014]
[1725662144052,0.185408,53935.0,53934.0,0.08243]
[1725662144320,0.20284772,53935.0,53934.0,0.08243]
[1725662145011,0.01743972,53935.0,53934.0,0.08243]
[1725662146171,0.20284772,53935.0,53934.0,0.08243]
[1725662146387,0.20884772,53935.0,53934.0,0.08343]
[1725662146607,0.20284772,53935.0,53934.0,0.08243]
[1725662147055,0.20784772,53935.0,53934.0,0.08243]
[1725662147269,0.20784772,53935.0,53934.0,0.08843]
[1725662147476,0.20884772,53935.0,53934.0,0.08843]
[1725662147906,0.20784772,53935.0,53934.0,0.08243]
[1725662148118,0.57866372,53935.0,53934.0,0.08243]
[1725662148327,0.57966372,53935.0,53934.0,0.08943]
[1725662148745,0.20784772,53935.0,53934.0,0.08243]
[1725662149173,0.20884772,53935.0,53934.0,0.08943]
[1725662149635,0.20384772,53935.0,53934.0,0.08943]
[1725662149854,0.20884772,53935.0,53934.0,0.08943]
[1725662150068,0.02343972,53935.0,53934.0,0.08943]
[1725662151388,0.20884772,53935.0,53934.0,0.08943]
[1725662151602,0.20784772,53935.0,53934.0,0.08243]
[1725662152092,0.57966372,53935.0,53934.0,0.09043]
[1725662152525,0.57466372,53935.0,53934.0,0.09043]
[1725662152971,0.57866372,53935.0,53934.0,0.09043]
[1725662153185,0.23225628,53935.0,53934.0,0.09043]
[1725662153409,0.23125628,53935.0,53934.0,0.08243]
[1725662153625,0.23225628,53935.0,53934.0,0.08943]
[1725662154044,0.23125628,53935.0,53934.0,0.08243]
[1725662154452,0.23225628,53935.0,53934.0,0.09043]
[1725662155527,0.2876866,53935.0,53934.0,0.09043]
[1725662157104,0.04684828,53935.0,53934.0,0.09043]
[1725662157333,0.23225613,53935.0,53934.0,0.09043]
[1725662157553,0.23225613,53935.0,53934.0,0.08869555]
[1725662158485,0.26132398,53935.0,53934.0,0.08869555]
[1725662159407,0.23225613,53935.0,53934.0,0.08869555]
[1725662159702,0.23225613,53935.0,53934.0,0.08566055]
[1725662161311,0.22221884,53935.0,53934.0,0.08566055]
[1725662161532,0.22765645,53935.0,53934.0,0.08566055]
[1725662161668,0.22765645,53935.0,53934.0,0.10866055]
[1725662161669,0.04224845,53935.0,53934.0,0.10866055]
[1725662161898,0.04224845,53935.0,53934.0,0.16896055]
[1725662162741,0.07131591,53935.0,53934.0,0.16896055]
[1725662163111,0.12674623,53935.0,53934.0,0.16896055]
[1725662163531,0.07131591,53935.0,53934.0,0.16896055]
[1725662163757,0.07131576,53935.0,53934.0,0.16896055]
[1725662163968,0.15446125,53935.0,53934.0,0.16896055]
[1725662164659,0.07131576,53935.0,53934.0,0.16896055]
[1725662164947,0.12557201,53935.0,53934.0,0.16896055]
[1725662165172,0.10813299,53935.0,53934.0,0.35437155]
[1725662165404,0.12557217,53935.0,53934.0,0.35437155]
[1725662165636,0.09781298,53935.0,53934.0,0.35437155]
[1725662165843,0.04224846,53935.0,53934.0,1.09601755]
[1725662166261,0.01843918,53935.0,53934.0,1.09601755]
[1725662167353,0.01743918,53935.0,53934.0,1.08801755]
[1725662167582,0.01843918,53935.0,53934.0,1.10101755]
[1725662168026,0.0740037,53935.0,53934.0,0.73019455]
[1725662168242,0.07404096,53935.0,53934.0,0.73019455]
[1725662168457,0.01843918,53935.0,53934.0,0.73019455]
[1725662168688,0.07405093,53935.0,53934.0,0.73019455]
[1725662168904,0.07505093,53935.0,53934.0,0.74419455]
[1725662169116,0.04850536,53935.0,53934.0,0.18796055]
[1725662169331,0.18609084,53935.0,53934.0,0.18796055]
[1725662169577,0.26063819,53935.0,53934.0,0.10066055]
[1725662169801,0.39921401,53935.0,53934.0,0.10066055]
[1725662170026,0.39921401,53935.0,53934.0,0.09959192]
[1725662170245,0.77003001,53935.0,53934.0,0.09959192]
[1725662170467,1.00227019,53935.0,53934.0,0.02863]
[1725662171578,0.63145419,53935.0,53934.0,0.02863]
[1725662171808,0.26063819,53935.0,53934.0,0.02863]
[1725662172028,0.23157201,53935.0,53934.0,0.02863]
[1725662172679,0.04616401,53935.0,53934.0,0.09293]
[1725662172903,0.04616401,53935.0,53934.0,0.11593]
[1725662173108,0.04616401,53935.0,53934.0,0.381641]
[1725662173320,0.11135381,53936.0,53934.0,0.11593]
[1725662173535,0.08351536,53935.0,53934.0,0.381641]
[1725662173753,0.08351536,53936.0,53934.0,0.301341]
[1725662173949,0.08351051,53937.0,53936.0,0.0803]
[1725662174159,0.08351051,53937.0,53936.0,0.1454641]
[1725662174372,0.11135381,53939.0,53937.0,0.1446]
[1725662174839,0.11135381,53939.0,53938.0,0.023]
[1725662175116,0.11135381,53940.0,53938.0,0.17130761]
[1725662175322,0.05648623,53941.0,53940.0,0.700773]
[1725662175532,0.0298794,53941.0,53940.0,1.463337]
[1725662175743,0.000815,53941.0,53940.0,1.463337]
[1725662175954,0.02987778,53941.0,53940.0,1.463337]
[1725662176162,0.02987778,53941.0,53940.0,1.12621381]
[1725662176622,0.03087778,53941.0,53940.0,1.14021381]
[1725662177037,0.03087778,53941.0,53940.0,1.15421381]
[1725662177461,0.03087778,53941.0,53940.0,1.11667569]
[1725662177704,0.03087778,53941.0,53940.0,0.74589369]
[1725662180910,0.03087778,53941.0,53940.0,1.11667569]
[1725662181842,0.001815,53941.0,53940.0,1.11667569]
[1725662182290,0.001815,53941.0,53940.0,1.11216229]
[1725662185606,0.01924823,53941.0,53940.0,1.11216229]
[1725662186448,0.04831099,53941.0,53940.0,1.11216229]
[1725662186680,0.04831099,53941.0,53940.0,1.48294429]
[1725662188266,0.04831002,53941.0,53940.0,1.67799596]
[1725662188468,0.04831002,53941.0,53940.0,1.67303948]
[1725662189533,0.04831002,53941.0,53940.0,1.47798781]
[1725662191098,0.04831002,53941.0,53940.0,1.47961781]
[1725662191574,0.03087776,53941.0,53940.0,2.75410381]
[1725662191788,0.01924696,53941.0,53940.0,3.32993748]
[1725662192056,0.01924696,53941.0,53940.0,3.34993748]
[1725662192489,0.01924696,53941.0,53940.0,3.35193748]
[1725662193424,0.000815,53941.0,53940.0,3.33793748]
[1725662193651,0.000815,53941.0,53940.0,3.37512748]
[1725662193873,0.000815,53941.0,53940.0,3.38912748]
[1725662194304,0.000815,53941.0,53940.0,3.35937904]
[1725662194541,0.000815,53941.0,53940.0,3.35763181]
[1725662194542,0.0182459,53941.0,53940.0,3.35763181]
[1725662194766,0.0182459,53941.0,53940.0,3.36091423]
[1725662194976,0.0182459,53941.0,53940.0,3.35918833]
[1725662195216,0.0182459,53941.0,53940.0,3.34405443]
[1725662195422,0.0182459,53941.0,53940.0,3.35690958]
[1725662195632,0.0182459,53941.0,53940.0,3.35516768]
[1725662195855,0.02987329,53941.0,53940.0,3.35541674]
[1725662196084,0.02987329,53941.0,53940.0,3.36822732]
[1725662196295,0.04730424,53941.0,53940.0,3.36708916]
[1725662196515,0.02987329,53941.0,53940.0,3.37930352]
[1725662196724,0.04730421,53941.0,53940.0,3.37814581]
[1725662196929,0.04730421,53941.0,53940.0,3.37644884]
[1725662197159,0.02987329,53941.0,53940.0,3.37527454]
[1725662197386,0.02987329,53941.0,53940.0,3.37349766]
[1725662197598,0.02987329,53941.0,53940.0,3.37171814]
[1725662197840,0.02987329,53941.0,53940.0,3.36997738]
[1725662198079,0.02987329,53941.0,53940.0,3.36824782]
[1725662198298,0.02987329,53941.0,53940.0,3.36710713]
[1725662198518,0.02987329,53941.0,53940.0,3.36597656]
[1725662198729,0.02987329,53941.0,53940.0,3.3642237]
[1725662198930,0.02987329,53941.0,53940.0,3.36250155]
[1725662199164,0.02987329,53941.0,53940.0,3.3613464]
[1725662199397,0.02987329,53941.0,53940.0,3.35957284]
[1725662199604,0.02987329,53941.0,53940.0,3.3584138]
[1725662199813,0.02987329,53941.0,53940.0,3.72743562]
[1725662200032,0.000815,53944.0,53943.0,1.74105576]
[1725662200245,0.000815,53944.0,53943.0,1.8051991]
[1725662200460,0.000815,53944.0,53943.0,2.17424544]
[1725662200668,0.000815,53944.0,53943.0,2.17248661]
[1725662200903,0.000815,53944.0,53943.0,2.17130915]
[1725662201139,0.000815,53944.0,53943.0,2.16585015]
[1725662201390,0.000815,53944.0,53943.0,2.18885015]
[1725662201642,0.000815,53944.0,53943.0,2.20285015]
[1725662202086,0.000815,53944.0,53943.0,2.18885015]
[1725662202332,0.000815,53944.0,53943.0,2.20285015]
[1725662202808,0.000815,53944.0,53943.0,2.21685015]
[1725662203019,0.000815,53944.0,53943.0,2.29885015]
[1725662203724,0.000815,53944.0,53943.0,3.55933615]
[1725662204158,0.000815,53944.0,53943.0,3.57333615]
[1725662204587,0.000815,53944.0,53943.0,3.55933615]
[1725662204787,0.000815,53944.0,53943.0,3.57333615]
[1725662205835,0.000815,53944.0,53943.0,3.55933615]
[1725662206052,0.000815,53944.0,53943.0,3.57333615]
[1725662207585,0.000815,53944.0,53943.0,3.16521]
[1725662208021,0.04729851,53944.0,53943.0,3.16521]
[1725662208674,0.02986884,53944.0,53943.0,3.16521]
[1725662209352,0.02986884,53944.0,53943.0,3.16538515]
[1725662210066,0.02986884,53944.0,53943.0,3.20261515]
[1725662210488,0.04729823,53944.0,53943.0,3.20261515]
[1725662210702,0.02986884,53944.0,53943.0,3.20261515]
[1725662211361,0.04729869,53944.0,53943.0,3.20261515]
[1725662211790,0.02986884,53944.0,53943.0,3.20261515]
[1725662212000,0.01824419,53944.0,53943.0,3.20261515]
[1725662212212,0.000815,53944.0,53943.0,3.20261515]
[1725662213289,0.01824408,53944.0,53943.0,3.20261515]
[1725662213502,0.000815,53944.0,53943.0,3.20261515]
[1725662214400,0.01824402,53944.0,53943.0,3.20244]
[1725662215312,0.04729991,53944.0,53943.0,3.20244]
[1725662216180,0.04729991,53944.0,53943.0,3.20407]
[1725662216853,0.02987089,53944.0,53943.0,3.20407]
[1725662217070,0.04730095,53944.0,53943.0,3.20407]
[1725662220303,0.04730114,53944.0,53943.0,3.20407]
[1725662222008,0.01824525,53944.0,53943.0,3.20407]
[1725662222521,0.01824439,53944.0,53943.0,3.20407]
[1725662225419,0.002,53963.0,53960.0,0.004]
[1725662225661,0.05559268,53962.0,53961.0,0.212319]
[1725662225881,0.05559268,53962.0,53961.0,0.582957]
[1725662225882,0.07134132,53962.0,53961.0,0.582957]
[1725662226608,0.07134132,53962.0,53961.0,0.027]
[1725662227348,0.07134132,53962.0,53961.0,0.041]
[1725662227612,0.01574864,53962.0,53961.0,0.240319]
[1725662228587,0.02004864,53962.0,53961.0,0.240319]
[1725662228835,0.01886364,53962.0,53961.0,0.240319]
[1725662229086,0.04791667,53962.0,53961.0,0.240319]
[1725662230266,0.13133021,53962.0,53961.0,0.240319]
[1725662230510,0.13333021,53962.0,53961.0,0.055]
[1725662230978,0.13333021,53962.0,53961.0,0.032]
[1725662230979,1.09569759,53962.0,53961.0,0.032]
[1725662231166,1.02674064,53962.0,53961.0,0.032]
[1725662231652,1.1658664,53962.0,53961.0,0.032]
[1725662231867,1.39737164,53962.0,53961.0,0.032]
[1725662232732,1.39737164,53962.0,53961.0,0.018]
[1725662233012,1.39737164,53962.0,53961.0,0.017]
[1725662233234,1.39737164,53962.0,53961.0,0.031]